fUST/lending_fUST_20240711
["ID","MTS","AMOUNT","RATE_DAILY","PERIOD"]
[331721258,1720696258913,-500.0,0.00027671,3]
[331721259,1720696258922,-521.02,0.00027671,7]
[331721260,1720696258931,-500.0,0.00027671,7]
[331721261,1720696258941,-181.86153676,0.00027671,7]
[331721262,1720696258950,-507.59917498,0.00027671,7]
[331721263,1720696258960,-615.73,0.00027671,7]
[331721264,1720696258969,-500.0,0.00027671,7]
[331721265,1720696258978,-600.0,0.00027671,7]
[331721266,1720696258988,-497.2291867,0.00027671,7]
[331721267,1720696258997,-532.15749455,0.00027671,7]
[331721268,1720696259007,-500.0,0.00027671,7]
[331721269,1720696259018,-206.03163053,0.00027671,7]
[331721270,1720696259026,-501.37482477,0.00027671,7]
[331721271,1720696259036,-500.0,0.00027671,7]
[331721272,1720696259045,-2584.64,0.00027671,7]
[331721273,1720696259055,-1397.22,0.00027671,7]
[331721274,1720696259064,-500.0,0.00027671,7]
[331721275,1720696259074,-500.0,0.00027671,7]
[331721276,1720696259084,-1003.12,0.00027671,2]
[331721277,1720696259093,-500.0,0.00027671,7]
[331721278,1720696259103,-634.83237238,0.00027671,7]
[331721279,1720696259113,-500.0,0.00027671,7]
[331721280,1720696259122,-285.92165846,0.00027671,7]
[331721281,1720696259132,-500.0,0.00027671,7]
[331721282,1720696259142,-500.0,0.00027671,7]
[331721283,1720696259152,-500.0,0.00027671,7]
[331721284,1720696259163,-489.39597377,0.00027671,7]
[331721285,1720696259172,-505.99401703,0.00027671,7]
[331721286,1720696259182,-489.30334911,0.00027671,7]
[331721287,1720696259192,-1241.41,0.00027671,7]
[331721288,1720696259202,-2406.75,0.00027671,7]
[331721289,1720696259212,-500.0,0.00027671,7]
[331721290,1720696259222,-580.83,0.00027671,7]
[331721291,1720696259232,-512.46239049,0.00027671,7]
[331721292,1720696259241,-769.94,0.00027671,7]
[331721293,1720696259251,-5908.86,0.00027671,7]
[331721294,1720696259261,-500.0,0.00027671,7]
[331721295,1720696259271,-500.0,0.00027671,7]
[331721296,1720696259281,-348.67485687,0.00027671,7]
[331721297,1720696259293,-500.0,0.00027671,7]
[331721298,1720696259304,-500.0,0.00027671,2]
[331721299,1720696259313,-500.0,0.00027671,7]
[331721300,1720696259324,-505.84872366,0.00027671,7]
[331721301,1720696259333,-504.55016843,0.00027671,7]
[331721302,1720696259344,-500.0,0.00027671,7]
[331721303,1720696259354,-500.0,0.00027671,2]
[331721304,1720696259364,-431.8712906,0.00027671,7]
[331721305,1720696259374,-1363.57,0.00027671,4]
[331721306,1720696259385,-530.4203538,0.00027671,7]
[331721307,1720696259395,-500.0,0.00027671,2]
[331721308,1720696259404,-151.0,0.00027844,2]
[331721309,1720696259414,-1361.21103541,0.000279,2]
[331721310,1720696259423,-500.0,0.00027945,2]
[331721311,1720696259433,-500.0,0.00027945,7]
[331721312,1720696259442,-151.0,0.00027945,7]
[331721313,1720696259452,-178.707988,0.00027945,7]
[331721314,1720696259461,-500.0,0.00027945,7]
[331721315,1720696259471,-500.0,0.00027945,7]
[331721316,1720696259480,-500.0,0.00027945,7]
[331721317,1720696259490,-500.64757361,0.00027945,7]
[331721318,1720696259499,-500.0,0.00027945,7]
[331721319,1720696259509,-181.008108,0.00027945,7]
[331721320,1720696259520,-181.008108,0.00027945,7]
[331721321,1720696259529,-500.0,0.00027945,7]
[331721322,1720696259539,-500.0,0.00027945,7]
[331721323,1720696259549,-500.0,0.00027945,2]
[331721324,1720696259559,-500.65,0.00027945,7]
[331721325,1720696259568,-518.09,0.00027945,7]
[331721326,1720696259578,-500.0,0.00027945,7]
[331721327,1720696259588,-500.0,0.00027945,7]
[331721328,1720696259597,-212.20744425,0.00027945,7]
[331721329,1720696259607,-500.0,0.00027945,7]
[331721330,1720696259617,-509.38177595,0.00027945,7]
[331721331,1720696259628,-500.0,0.00027945,7]
[331721332,1720696259638,-500.0,0.00027945,7]
[331721333,1720696259647,-500.0,0.00027945,7]
[331721334,1720696259657,-500.0,0.00027945,7]
[331721335,1720696259667,-500.0,0.00027945,7]
[331721336,1720696259678,-500.0,0.00027945,7]
[331721337,1720696259751,-500.0,0.00027945,7]
[331721338,1720696259762,-500.0,0.00027945,7]
[331721339,1720696259775,-622.93318735,0.00027945,7]
[331721340,1720696259784,-500.0,0.00027945,7]
[331721341,1720696259793,-649.47,0.00027945,7]
[331721342,1720696259803,-500.0,0.00027945,7]
[331721343,1720696259812,-865.95,0.00027945,7]
[331721344,1720696259822,-4454.34,0.00027945,7]
[331721345,1720696259832,-500.0,0.00027945,7]
[331721346,1720696259846,-500.0,0.00027945,7]
[331721347,1720696259855,-500.0,0.00027945,7]
[331721348,1720696259865,-1578.77,0.00027945,7]
[331721349,1720696259875,-151.0,0.00027945,7]
[331721350,1720696259884,-634.34,0.00027945,7]
[331721351,1720696259894,-714.35,0.00027945,7]
[331721352,1720696259903,-577.65,0.00027945,7]
[331721353,1720696259913,-640.0,0.00027945,7]
[331721354,1720696259923,-1071.09,0.00027945,7]
[331721355,1720696259932,-500.0,0.00027945,7]
[331721356,1720696259942,-500.0,0.00027945,7]
[331721357,1720696259951,-824.72,0.00027945,7]
[331721358,1720696259960,-151.0,0.00027945,7]
[331721359,1720696259970,-566.53,0.00027945,7]
[331721360,1720696259980,-155.979425,0.00027945,7]
[331721361,1720696259990,-500.0,0.00027945,7]
[331721362,1720696260000,-533.15,0.00027945,7]
[331721363,1720696260009,-504.57919105,0.00027945,3]
[331721364,1720696260022,-521.02,0.00027945,7]
[331721365,1720696260032,-500.0,0.00027945,7]
[331721366,1720696260042,-194.613845,0.00027945,7]
[331721367,1720696260051,-194.613845,0.00027945,7]
[331721368,1720696260061,-615.73,0.00027945,7]
[331721369,1720696260071,-151.0,0.00027945,7]
[331721370,1720696260081,-161.18089,0.00027945,7]
[331721371,1720696260091,-581.21235626,0.00027945,7]
[331721372,1720696260101,-161.18089,0.00027945,7]
[331721373,1720696260111,-151.0,0.00027945,7]
[331721374,1720696260121,-151.0,0.00027945,7]
[331721375,1720696260131,-2116.465711,0.00027945,7]
[331721376,1720696260141,-500.0,0.00027945,7]
[331721377,1720696260151,-2116.465711,0.00027945,7]
[331721378,1720696260160,-182.989071,0.00027945,7]
[331721379,1720696260169,-151.0,0.00027945,7]
[331721380,1720696260179,-182.989071,0.00027945,7]
[331721381,1720696260188,-151.0,0.00027945,7]
[331721382,1720696260198,-500.0,0.00027945,7]
[331721383,1720696260208,-2584.64,0.00027945,7]
[331721384,1720696260219,-1397.22,0.00027945,7]
[331721385,1720696260228,-500.0,0.00027945,7]
[331721386,1720696260238,-500.0,0.00027945,7]
[331721387,1720696260248,-1003.12,0.00027945,2]
[331721388,1720696260258,-500.0,0.00027945,7]
[331721389,1720696260269,-500.0,0.00027945,7]
[331721390,1720696260279,-500.0,0.00027945,7]
[331721391,1720696260290,-555.99480381,0.00027945,7]
[331721392,1720696260302,-240.35979658,0.00027945,7]
[331721393,1720696260313,-468.026029,0.00027945,7]
[331721394,1720696260323,-468.026029,0.00027945,7]
[331721395,1720696260335,-707.273885,0.00027945,7]
[331721396,1720696260344,-1241.41,0.00027945,7]
[331721397,1720696260354,-2406.75,0.00027945,7]
[331721398,1720696260364,-707.273885,0.00027945,7]
[331721399,1720696260375,-676.11548,0.00027945,7]
[331721400,1720696260385,-500.0,0.00027945,7]
[331721401,1720696260395,-676.11548,0.00027945,7]
[331721402,1720696260404,-580.83,0.00027945,7]
[331721403,1720696260414,-769.94,0.00027945,7]
[331721404,1720696260424,-5908.86,0.00027945,7]
[331721405,1720696260434,-500.0,0.00027945,7]
[331721406,1720696260444,-500.0,0.00027945,7]
[331721407,1720696260454,-790.245557,0.00027945,7]
[331721408,1720696260464,-790.245557,0.00027945,7]
[331721409,1720696260473,-435.748526,0.00027945,7]
[331721410,1720696260483,-500.0,0.00027945,7]
[331721411,1720696260493,-500.0,0.00027945,2]
[331721412,1720696260502,-435.748526,0.00027945,7]
[331721413,1720696260512,-500.0,0.00027945,7]
[331721414,1720696260525,-500.0,0.00027945,7]
[331721415,1720696260535,-500.0,0.00027945,2]
[331721416,1720696260546,-779.427854,0.00027945,2]
[331721417,1720696260556,-1363.57,0.00027945,4]
[331721418,1720696260566,-779.427854,0.00027945,2]
[331721419,1720696260576,-500.0,0.00027945,2]
[331721420,1720696260586,-2557.142157,0.00027945,7]
[331721421,1720696260595,-153.0,0.00027945,2]
[331721422,1720696260604,-153.0,0.00027945,2]
[331721423,1720696260614,-153.0,0.00027945,2]
[331721424,1720696260624,-153.0,0.00027945,2]
[331721425,1720696260633,-153.0,0.00027945,2]
[331721426,1720696260643,-153.0,0.00027945,2]
[331721427,1720696260652,-153.0,0.00027945,2]
[331721428,1720696260661,-153.0,0.00027945,2]
[331721429,1720696260671,-153.0,0.00027945,2]
[331721430,1720696260681,-153.0,0.00027945,2]
[331721431,1720696260690,-153.0,0.00027945,2]
[331721432,1720696260699,-153.0,0.00027945,2]
[331721433,1720696260709,-153.0,0.00027945,2]
[331721434,1720696260718,-153.0,0.00027945,2]
[331721435,1720696260729,-23242.58422626,0.0002799,2]
[331721436,1720696260738,-500.0,0.00028,2]
[331721437,1720696260747,-1000.0,0.00028,28]
[331721438,1720696260758,-526.29790288,0.00028,2]
[331721439,1720696260768,-268.70466552,0.00028,2]
[331721440,1720696260778,-500.0,0.00028219,2]
[331721441,1720696260788,-500.0,0.00028219,7]
[331721442,1720696260797,-500.0,0.00028219,7]
[331721443,1720696260807,-500.0,0.00028219,7]
[331721444,1720696260817,-500.0,0.00028219,7]
[331721445,1720696260826,-500.0,0.00028219,7]
[331721446,1720696260836,-500.0,0.00028219,7]
[331721447,1720696260845,-500.0,0.00028219,7]
[331721448,1720696260855,-500.0,0.00028219,2]
[331721449,1720696260865,-500.65,0.00028219,7]
[331721450,1720696260875,-518.09,0.00028219,7]
[331721451,1720696260884,-500.0,0.00028219,7]
[331721452,1720696260894,-500.0,0.00028219,7]
[331721453,1720696260904,-411.47391751,0.00028219,7]
[331721454,1720696260913,-500.0,0.00028219,7]
[331721455,1720696260923,-474.93921109,0.00028219,7]
[331721456,1720696260933,-500.0,0.00028219,7]
[331721457,1720696260942,-500.0,0.00028219,7]
[331721458,1720696260952,-500.0,0.00028219,7]
[331721459,1720696260962,-500.0,0.00028219,7]
[331721460,1720696260971,-500.0,0.00028219,7]
[331721461,1720696260981,-316.05492802,0.00028219,7]
[331721462,1720696260991,-500.0,0.00028219,7]
[331721463,1720696261001,-649.47,0.00028219,7]
[331721464,1720696261011,-181.673412,0.00028219,7]
[331721465,1720696261023,-181.673412,0.00028219,7]
[331721466,1720696261032,-151.0,0.00028219,7]
[331721467,1720696261044,-380.63778886,0.00028219,7]
[331721468,1720696261053,-865.95,0.00028219,7]
[331721469,1720696261063,-4454.34,0.00028219,7]
[331721470,1720696261078,-500.0,0.00028219,7]
[331721471,1720696261096,-500.0,0.00028219,7]
[331721472,1720696261105,-421.27826806,0.00028219,7]
[331721473,1720696261115,-1578.77,0.00028219,7]
[331721474,1720696261125,-634.34,0.00028219,7]
[331721475,1720696261193,-714.35,0.00028219,7]
[331721476,1720696261203,-577.65,0.00028219,7]
[331721477,1720696261213,-1071.09,0.00028219,7]
[331721478,1720696261223,-500.0,0.00028219,7]
[331721479,1720696261233,-500.0,0.00028219,7]
[331721480,1720696261242,-824.72,0.00028219,7]
[331721481,1720696261251,-566.53,0.00028219,7]
[331721482,1720696261261,-500.0,0.00028219,7]
[331721483,1720696261273,-533.15,0.00028219,7]
[331721484,1720696261282,-521.02,0.00028219,7]
[331721485,1720696261293,-500.0,0.00028219,7]
[331721486,1720696261304,-615.73,0.00028219,7]
[331721487,1720696261313,-500.0,0.00028219,7]
[331721488,1720696261323,-500.0,0.00028219,7]
[331721489,1720696261332,-2584.64,0.00028219,7]
[331721490,1720696261347,-1397.22,0.00028219,7]
[331721491,1720696261357,-500.0,0.00028219,7]
[331721492,1720696261368,-500.0,0.00028219,7]
[331721493,1720696261377,-1003.12,0.00028219,2]
[331721494,1720696261387,-508.75326275,0.00028219,7]
[331721495,1720696261396,-500.0,0.00028219,7]
[331721496,1720696261406,-500.0,0.00028219,7]
[331721497,1720696261415,-1241.41,0.00028219,7]
[331721498,1720696261424,-2406.75,0.00028219,7]
[331721499,1720696261435,-500.0,0.00028219,7]
[331721500,1720696261445,-580.83,0.00028219,7]
[331721501,1720696261454,-769.94,0.00028219,7]
[331721502,1720696261463,-5908.86,0.00028219,7]
[331721503,1720696261473,-500.0,0.00028219,7]
[331721504,1720696261482,-500.0,0.00028219,7]
[331721505,1720696261491,-500.0,0.00028219,7]
[331721506,1720696261501,-500.0,0.00028219,2]
[331721507,1720696261510,-500.0,0.00028219,7]
[331721508,1720696261522,-500.0,0.00028219,7]
[331721509,1720696261532,-500.0,0.00028219,2]
[331721510,1720696261541,-1363.57,0.00028219,4]
[331721511,1720696261551,-500.0,0.00028219,2]
[331721512,1720696261560,-5064.90830628,0.00028271,2]
[331721513,1720696261569,-620.0,0.0002839,2]
[331721514,1720696261578,-151.0,0.00028472,2]
[331721515,1720696261587,-150.0,0.00028473,2]
[331721516,1720696261596,-503.0,0.00028473,2]
[331721517,1720696261609,-520.14733782,0.00028493,2]
[331721518,1720696261620,-500.0,0.00028493,7]
[331721519,1720696261630,-151.0,0.00028493,7]
[331721520,1720696261641,-178.707988,0.00028493,7]
[331721521,1720696261650,-469.84587989,0.00028493,7]
[331721522,1720696261659,-500.0,0.00028493,7]
[331721523,1720696261669,-500.0,0.00028493,7]
[331721524,1720696261678,-500.0,0.00028493,7]
[331721525,1720696261687,-181.008108,0.00028493,7]
[331721526,1720696261697,-181.008108,0.00028493,7]
[331721527,1720696261706,-500.0,0.00028493,7]
[331721528,1720696261716,-500.0,0.00028493,7]
[331721529,1720696261726,-500.0,0.00028493,2]
[331721530,1720696261736,-500.65,0.00028493,7]
[331721531,1720696261745,-518.09,0.00028493,7]
[331721532,1720696261755,-500.0,0.00028493,7]
[331721533,1720696261764,-500.0,0.00028493,7]
[331721534,1720696261774,-500.0,0.00028493,7]
[331721535,1720696261783,-500.0,0.00028493,7]
[331721536,1720696261794,-500.0,0.00028493,7]
[331721537,1720696261803,-500.0,0.00028493,7]
[331721538,1720696261813,-500.0,0.00028493,7]
[331721539,1720696261822,-649.47,0.00028493,7]
[331721540,1720696261831,-865.95,0.00028493,7]
[331721541,1720696261842,-4454.34,0.00028493,7]
[331721542,1720696261852,-500.0,0.00028493,7]
[331721543,1720696261863,-500.0,0.00028493,7]
[331721544,1720696261876,-1578.77,0.00028493,7]
[331721545,1720696261887,-151.0,0.00028493,7]
[331721546,1720696261897,-634.34,0.00028493,7]
[331721547,1720696261908,-714.35,0.00028493,7]
[331721548,1720696261917,-577.65,0.00028493,7]
[331721549,1720696261928,-1071.09,0.00028493,7]
[331721550,1720696261939,-500.0,0.00028493,7]
[331721551,1720696261949,-500.0,0.00028493,7]
[331721552,1720696261961,-824.72,0.00028493,7]
[331721553,1720696261971,-151.0,0.00028493,7]
[331721554,1720696261981,-566.53,0.00028493,7]
[331721555,1720696261993,-500.0,0.00028493,7]
[331721556,1720696262003,-533.15,0.00028493,7]
[331721557,1720696262014,-521.02,0.00028493,7]
[331721558,1720696262025,-194.613845,0.00028493,7]
[331721559,1720696262036,-194.613845,0.00028493,7]
[331721560,1720696262046,-615.73,0.00028493,7]
[331721561,1720696262057,-161.18089,0.00028493,7]
[331721562,1720696262066,-151.0,0.00028493,7]
[331721563,1720696262075,-161.18089,0.00028493,7]
[331721564,1720696262084,-151.0,0.00028493,7]
[331721565,1720696262093,-253.102732,0.00028493,7]
[331721566,1720696262102,-2116.465711,0.00028493,7]
[331721567,1720696262111,-500.0,0.00028493,7]
[331721568,1720696262121,-2116.465711,0.00028493,7]
[331721569,1720696262130,-182.989071,0.00028493,7]
[331721570,1720696262140,-151.0,0.00028493,7]
[331721571,1720696262150,-182.989071,0.00028493,7]
[331721572,1720696262160,-186.616496,0.00028493,7]
[331721573,1720696262169,-500.0,0.00028493,7]
[331721574,1720696262179,-2584.64,0.00028493,7]
[331721575,1720696262188,-1397.22,0.00028493,7]
[331721576,1720696262197,-500.0,0.00028493,7]
[331721577,1720696262207,-500.0,0.00028493,7]
[331721578,1720696262216,-1003.12,0.00028493,2]
[331721579,1720696262226,-429.68827956,0.00028493,7]
[331721580,1720696262235,-500.0,0.00028493,7]
[331721581,1720696262245,-468.026029,0.00028493,7]
[331721582,1720696262257,-468.026029,0.00028493,7]
[331721583,1720696262269,-707.273885,0.00028493,7]
[331721584,1720696262278,-1241.41,0.00028493,7]
[331721585,1720696262289,-2406.75,0.00028493,7]
[331721586,1720696262307,-707.273885,0.00028493,7]
[331721587,1720696262317,-676.11548,0.00028493,7]
[331721588,1720696262327,-500.0,0.00028493,7]
[331721589,1720696262339,-676.11548,0.00028493,7]
[331721590,1720696262350,-580.83,0.00028493,7]
[331721591,1720696262359,-769.94,0.00028493,7]
[331721592,1720696262372,-5908.86,0.00028493,7]
[331721593,1720696262382,-500.0,0.00028493,7]
[331721594,1720696262393,-500.0,0.00028493,7]
[331721595,1720696262404,-790.245557,0.00028493,7]
[331721596,1720696262415,-790.245557,0.00028493,7]
[331721597,1720696262425,-435.748526,0.00028493,7]
[331721598,1720696262436,-500.0,0.00028493,7]
[331721599,1720696262446,-500.0,0.00028493,2]
[331721600,1720696262456,-435.748526,0.00028493,7]
[331721601,1720696262520,-500.0,0.00028493,7]
[331721602,1720696262532,-500.0,0.00028493,7]
[331721603,1720696262544,-500.0,0.00028493,2]
[331721604,1720696262553,-779.427854,0.00028493,2]
[331721605,1720696262565,-1363.57,0.00028493,4]
[331721606,1720696262575,-779.427854,0.00028493,2]
[331721607,1720696262584,-500.0,0.00028493,2]
[331721608,1720696262595,-2557.142157,0.00028493,7]
[331721609,1720696262606,-799.23663089,0.000285,2]
[331721610,1720696262615,-150.0,0.00028529,2]
[331721611,1720696262624,-351.0,0.000287,2]
[331721612,1720696262633,-1406.0,0.000287,2]
[331721613,1720696262643,-309.9059119,0.0002874,2]
[331721614,1720696262653,-354.30892637,0.00028767,7]
[331721615,1720696262663,-500.0,0.00028767,7]
[331721616,1720696262674,-500.0,0.00028767,7]
[331721617,1720696262684,-500.0,0.00028767,7]
[331721618,1720696262694,-500.0,0.00028767,7]
[331721619,1720696262706,-500.0,0.00028767,7]
[331721620,1720696262715,-533.48997038,0.00028767,2]
[331721621,1720696262725,-500.65,0.00028767,7]
[331721622,1720696262734,-518.09,0.00028767,7]
[331721623,1720696262743,-500.0,0.00028767,7]
[331721624,1720696262753,-500.0,0.00028767,7]
[331721625,1720696262767,-500.0,0.00028767,7]
[331721626,1720696262777,-381.10692252,0.00028767,7]
[331721627,1720696262790,-500.0,0.00028767,7]
[331721628,1720696262799,-500.0,0.00028767,7]
[331721629,1720696262811,-500.0,0.00028767,7]
[331721630,1720696262821,-649.47,0.00028767,7]
[331721631,1720696262831,-181.673412,0.00028767,7]
[331721632,1720696262840,-181.673412,0.00028767,7]
[331721633,1720696262852,-151.0,0.00028767,7]
[331721634,1720696262861,-865.95,0.00028767,7]
[331721635,1720696262873,-4454.34,0.00028767,7]
[331721636,1720696262883,-500.0,0.00028767,7]
[331721637,1720696262894,-500.0,0.00028767,7]
[331721638,1720696262904,-1578.77,0.00028767,7]
[331721639,1720696262915,-634.34,0.00028767,7]
[331721640,1720696262925,-714.35,0.00028767,7]
[331721641,1720696262935,-577.65,0.00028767,7]
[331721642,1720696262945,-1071.09,0.00028767,7]
[331721643,1720696262956,-500.0,0.00028767,7]
[331721644,1720696262966,-500.0,0.00028767,7]
[331721645,1720696262976,-824.72,0.00028767,7]
[331721646,1720696262987,-566.53,0.00028767,7]
[331721647,1720696262997,-500.0,0.00028767,7]
[331721648,1720696263007,-533.15,0.00028767,7]
[331721649,1720696263019,-521.02,0.00028767,7]
[331721650,1720696263030,-615.73,0.00028767,7]
[331721651,1720696263040,-500.0,0.00028767,7]
[331721652,1720696263049,-500.0,0.00028767,7]
[331721653,1720696263059,-2584.64,0.00028767,7]
[331721654,1720696263068,-1397.22,0.00028767,7]
[331721655,1720696263077,-500.0,0.00028767,7]
[331721656,1720696263086,-500.0,0.00028767,7]
[331721657,1720696263096,-1003.12,0.00028767,2]
[331721658,1720696263107,-500.0,0.00028767,7]
[331721659,1720696263118,-1241.41,0.00028767,7]
[331721660,1720696263128,-2406.75,0.00028767,7]
[331721661,1720696263139,-500.0,0.00028767,7]
[331721662,1720696263148,-580.83,0.00028767,7]
[331721663,1720696263158,-769.94,0.00028767,7]
[331721664,1720696263168,-5908.86,0.00028767,7]
[331721665,1720696263177,-500.0,0.00028767,7]
[331721666,1720696263187,-500.0,0.00028767,7]
[331721667,1720696263198,-500.0,0.00028767,7]
[331721668,1720696263208,-500.0,0.00028767,2]
[331721669,1720696263218,-500.0,0.00028767,7]
[331721670,1720696263227,-500.0,0.00028767,7]
[331721671,1720696263237,-500.0,0.00028767,2]
[331721672,1720696263246,-1363.57,0.00028767,4]
[331721673,1720696263255,-500.0,0.00028767,2]
[331721674,1720696263267,-89658.87541192,0.0002877,2]
[331721675,1720696263276,-151.0,0.0002877,7]
[331721676,1720696263285,-178.707988,0.0002877,7]
[331721677,1720696263295,-181.008108,0.0002877,7]
[331721678,1720696263306,-181.008108,0.0002877,7]
[331721679,1720696263316,-151.0,0.0002877,7]
[331721680,1720696263325,-151.0,0.0002877,7]
[331721681,1720696263336,-194.613845,0.0002877,7]
[331721682,1720696263346,-194.613845,0.0002877,7]
[331721683,1720696263355,-151.0,0.0002877,7]
[331721684,1720696263365,-161.18089,0.0002877,7]
[331721685,1720696263376,-161.18089,0.0002877,7]
[331721686,1720696263387,-151.0,0.0002877,7]
[331721687,1720696263397,-2116.465711,0.0002877,7]
[331721688,1720696263407,-2116.465711,0.0002877,7]
[331721689,1720696263417,-182.989071,0.0002877,7]
[331721690,1720696263427,-151.0,0.0002877,7]
[331721691,1720696263437,-182.989071,0.0002877,7]
[331721692,1720696263447,-468.026029,0.0002877,7]
[331721693,1720696263457,-468.026029,0.0002877,7]
[331721694,1720696263467,-707.273885,0.0002877,7]
[331721695,1720696263478,-707.273885,0.0002877,7]
[331721696,1720696263487,-676.11548,0.0002877,7]
[331721697,1720696263498,-676.11548,0.0002877,7]
[331721698,1720696263509,-790.245557,0.0002877,7]
[331721699,1720696263520,-790.245557,0.0002877,7]
[331721700,1720696263530,-435.748526,0.0002877,7]
[331721701,1720696263540,-435.748526,0.0002877,7]
[331721702,1720696263551,-779.427854,0.0002877,2]
[331721703,1720696263561,-779.427854,0.0002877,2]
[331721704,1720696263571,-2557.142157,0.0002877,7]
[331721705,1720696263582,-600.0,0.00028802,2]
[331721706,1720696263591,-500.0,0.00029,2]
[331721707,1720696263602,-6342.762248,0.00029,2]
[331721708,1720696263613,-500.0,0.00029041,7]
[331721709,1720696263623,-500.0,0.00029041,7]
[331721710,1720696263635,-500.0,0.00029041,7]
[331721711,1720696263644,-500.0,0.00029041,7]
[331721712,1720696263656,-500.0,0.00029041,7]
[331721713,1720696263666,-500.65,0.00029041,7]
[331721714,1720696263676,-518.09,0.00029041,7]
[331721715,1720696263687,-500.0,0.00029041,7]
[331721716,1720696263697,-500.0,0.00029041,7]
[331721717,1720696263707,-500.0,0.00029041,7]
[331721718,1720696263771,-500.0,0.00029041,7]
[331721719,1720696263781,-649.47,0.00029041,7]
[331721720,1720696263791,-181.673412,0.00029041,7]
[331721721,1720696263801,-181.673412,0.00029041,7]
[331721722,1720696263810,-151.0,0.00029041,7]
[331721723,1720696263820,-865.95,0.00029041,7]
[331721724,1720696263830,-4454.34,0.00029041,7]
[331721725,1720696263842,-500.0,0.00029041,7]
[331721726,1720696263851,-500.0,0.00029041,7]
[331721727,1720696263862,-1578.77,0.00029041,7]
[331721728,1720696263871,-634.34,0.00029041,7]
[331721729,1720696263881,-714.35,0.00029041,7]
[331721730,1720696263890,-577.65,0.00029041,7]
[331721731,1720696263900,-1071.09,0.00029041,7]
[331721732,1720696263910,-500.0,0.00029041,7]
[331721733,1720696263920,-500.0,0.00029041,7]
[331721734,1720696263931,-824.72,0.00029041,7]
[331721735,1720696263940,-566.53,0.00029041,7]
[331721736,1720696263950,-500.0,0.00029041,7]
[331721737,1720696263960,-533.15,0.00029041,7]
[331721738,1720696263970,-521.02,0.00029041,7]
[331721739,1720696263980,-615.73,0.00029041,7]
[331721740,1720696263990,-500.0,0.00029041,7]
[331721741,1720696264000,-500.0,0.00029041,7]
[331721742,1720696264011,-2584.64,0.00029041,7]
[331721743,1720696264022,-1397.22,0.00029041,7]
[331721744,1720696264031,-500.0,0.00029041,7]
[331721745,1720696264043,-500.0,0.00029041,7]
[331721746,1720696264053,-1003.12,0.00029041,2]
[331721747,1720696264063,-500.0,0.00029041,7]
[331721748,1720696264073,-1241.41,0.00029041,7]
[331721749,1720696264083,-2406.75,0.00029041,7]
[331721750,1720696264095,-500.0,0.00029041,7]
[331721751,1720696264104,-580.83,0.00029041,7]
[331721752,1720696264115,-769.94,0.00029041,7]
[331721753,1720696264125,-5908.86,0.00029041,7]
[331721754,1720696264134,-500.0,0.00029041,7]
[331721755,1720696264143,-500.0,0.00029041,7]
[331721756,1720696264153,-500.0,0.00029041,7]
[331721757,1720696264163,-500.0,0.00029041,2]